fUSD/lending_fUSD_20241230
["ID","MTS","AMOUNT","RATE_DAILY","PERIOD"]
[347165447,1735539033012,-150.0,0.00014911,2]
[347165449,1735539033022,-150.0,0.00014929,2]
[347165451,1735539033032,-150.0,0.00014933,2]
[347165453,1735539033043,-150.0,0.00014956,2]
[347165455,1735539033054,-150.0,0.00014961,2]
[347165457,1735539033065,-538.03607362,0.00014974,2]
[347165460,1735539033078,-711.96392638,0.00014974,2]
[347165462,1735539033089,-1250.0,0.00014974,2]
[347165464,1735539033099,-150.0,0.00014984,2]
[347165466,1735539033110,-500.0,0.00014988,2]
[347165468,1735539033120,-500.0,0.00014988,2]
[347165470,1735539033131,-505.02520261,0.00014988,2]
[347165472,1735539033142,-536.84014452,0.00014988,2]
[347165581,1735539038239,-9830.0985431,0.00014889,2]
[347165582,1735539038251,-500.0,0.00014889,2]
[347165583,1735539038296,-963.9,0.00014889,2]
[347165584,1735539038308,-1334.27894298,0.00014889,2]
[347165585,1735539038357,-3676.46281265,0.00014889,2]
[347165586,1735539038367,-35.60023014,0.00014988,2]
[347165587,1735539038377,-500.0,0.00014988,2]
[347165588,1735539038387,-170.8062637,0.00014988,2]
[347165589,1735539038399,-506.85773133,0.00014988,2]
[347165590,1735539038409,-26.57069002,0.00014988,2]
[347165591,1735539038422,-363.31652295,0.00014988,2]
[347165592,1735539038580,-110.11278703,0.00014988,2]
[347165612,1735539038857,-571.82805168,0.00014988,2]
[347165615,1735539038870,-592.27325012,0.00014988,2]
[347165617,1735539038879,-506.76300827,0.00014988,2]
[347165619,1735539038888,-500.0,0.00014988,2]
[347165621,1735539038897,-500.0,0.00014988,2]
[347165623,1735539038906,-88.61659795,0.00014988,2]
[347165772,1735539040362,-369.9709041,0.00014988,2]
[347165779,1735539040422,-41.41249795,0.00014988,2]
[347165781,1735539040433,-384.8834793,0.00014988,2]
[347165790,1735539040536,-115.1165207,0.00014988,2]
[347165791,1735539040545,-500.0,0.00014988,2]
[347165792,1735539040554,-500.0,0.00014988,2]
[347165793,1735539040564,-378.17423397,0.00014988,2]
[347165794,1735539040573,-500.0,0.00014988,2]
[347165795,1735539040582,-500.0,0.00014988,2]
[347165797,1735539040591,-500.0,0.00014988,2]
[347165799,1735539040600,-500.0,0.00014988,2]
[347165801,1735539040609,-500.0,0.00014988,2]
[347165803,1735539040619,-500.0,0.00014988,2]
[347165805,1735539040628,-500.0,0.00014988,2]
[347165807,1735539040637,-535.35,0.00014988,2]
[347165809,1735539040646,-500.0,0.00014988,2]
[347165811,1735539040654,-398.69715202,0.00014988,2]
[347165812,1735539040663,-237.96494791,0.00014988,2]
[347165814,1735539040673,-500.0,0.00014988,2]
[347165816,1735539040682,-336.57605402,0.00014988,2]
[347165818,1735539040691,-500.0,0.00014988,2]
[347165821,1735539040700,-2000.0,0.00014988,2]
[347165823,1735539040710,-200.0,0.00014988,2]
[347165824,1735539040720,-2000.0,0.00014988,2]
[347165827,1735539040729,-200.0,0.00014988,2]
[347165828,1735539040738,-497.85,0.00014988,2]
[347165830,1735539040750,-1001.2966,0.00014989,2]
[347165832,1735539040759,-151.0,0.00014989,2]
[347165834,1735539040770,-151.0,0.00014989,2]
[347165836,1735539040779,-151.0,0.00014989,2]
[347165838,1735539040789,-151.0,0.00014989,2]
[347165840,1735539040799,-151.0,0.00014989,2]
[347165842,1735539040808,-500.0,0.00014989,2]
[347165844,1735539040818,-500.0,0.00014989,2]
[347165846,1735539040827,-500.0,0.00014989,2]
[347165848,1735539040836,-500.0,0.00014989,2]
[347165850,1735539040845,-500.0,0.00014989,2]
[347165852,1735539040854,-500.0,0.00014989,2]
[347165854,1735539040863,-500.0,0.00014989,2]
[347165856,1735539040872,-500.0,0.00014989,2]
[347165858,1735539040881,-500.0,0.00014989,2]
[347165860,1735539040890,-500.0,0.00014989,2]
[347165862,1735539040899,-500.0,0.00014989,2]
[347165864,1735539040908,-500.0,0.00014989,2]
[347165866,1735539040918,-605.53519647,0.00014989,2]
[347165868,1735539040926,-500.0,0.00014989,2]
[347165870,1735539040936,-500.0,0.00014989,2]
[347165872,1735539040946,-500.0,0.00014989,2]
[347165874,1735539040956,-500.0,0.00014989,2]
[347165876,1735539040965,-358.53105148,0.00014989,2]
[347165878,1735539040974,-500.0,0.00014989,2]
[347165880,1735539040983,-500.0,0.00014989,2]
[347165882,1735539040992,-500.0,0.00014989,2]
[347165884,1735539041001,-500.0,0.00014989,2]
[347165886,1735539041010,-500.0,0.00014989,2]
[347165888,1735539041019,-500.0,0.00014989,2]
[347165890,1735539041028,-151.0,0.00014989,2]
[347165892,1735539041037,-500.0,0.00014989,2]
[347165894,1735539041047,-500.0,0.00014989,2]
[347165896,1735539041056,-500.0,0.00014989,2]
[347165898,1735539041065,-547.82,0.00014989,2]
[347165900,1735539041073,-500.0,0.00014989,2]
[347165902,1735539041083,-500.0,0.00014989,2]
[347165904,1735539041092,-500.0,0.00014989,2]
[347165906,1735539041101,-500.0,0.00014989,2]
[347165908,1735539041110,-500.0,0.00014989,2]
[347165910,1735539041120,-151.0,0.00014989,2]
[347165912,1735539041129,-500.0,0.00014989,2]
[347165914,1735539041138,-503.2743769,0.00014989,2]
[347165916,1735539041147,-500.0,0.00014989,2]
[347165918,1735539041158,-500.0,0.00014989,2]
[347165920,1735539041167,-500.0,0.00014989,2]
[347165922,1735539041176,-500.0,0.00014989,2]
[347165924,1735539041186,-510.61369578,0.00014989,2]
[347165926,1735539041195,-500.0,0.00014989,2]
[347165928,1735539041205,-502.73127373,0.00014989,2]
[347165930,1735539041214,-500.0,0.00014989,2]
[347165932,1735539041223,-500.0,0.00014989,2]
[347165934,1735539041232,-151.0,0.00014989,2]
[347165936,1735539041242,-500.0,0.00014989,2]
[347165938,1735539041251,-264.380423,0.00014989,2]
[347165940,1735539041260,-500.0,0.00014989,2]
[347165942,1735539041269,-500.0,0.00014989,2]
[347165944,1735539041278,-520.91322179,0.00014989,2]
[347165946,1735539041287,-151.305069,0.00014989,2]
[347165948,1735539041297,-500.0,0.00014989,2]
[347165950,1735539041307,-500.0,0.00014989,2]
[347165952,1735539041316,-151.799378,0.00014989,2]
[347165953,1735539041326,-500.44770544,0.00014989,2]
[347165955,1735539041335,-500.0,0.00014989,2]
[347165957,1735539041345,-500.0,0.00014989,2]
[347165960,1735539041359,-500.0,0.00014989,2]
[347165962,1735539041368,-409.55958301,0.00014989,2]
[347165964,1735539041377,-500.0,0.00014989,2]
[347165966,1735539041387,-500.0,0.00014989,2]
[347165968,1735539041397,-360.21936975,0.00014989,2]
[347165970,1735539041410,-139.78063025,0.00014989,2]
[347165972,1735539041419,-167.81774015,0.00014989,2]
[347166164,1735539043420,-266.94263153,0.00014989,2]
[347166173,1735539043497,-65.23962832,0.00014989,2]
[347166175,1735539043506,-10.84096679,0.00014989,2]
[347166178,1735539043536,-489.15903321,0.00014989,2]
[347166180,1735539043545,-500.0,0.00014989,2]
[347166181,1735539043554,-500.0,0.00014989,2]
[347166183,1735539043563,-419.59096679,0.00014989,2]
[347166469,1735539046820,-1372.08903321,0.00014989,2]
[347166471,1735539046829,-500.0,0.00014989,2]
[347166473,1735539046838,-500.0,0.00014989,2]
[347166474,1735539046847,-517.03930437,0.00014989,2]
[347166475,1735539046856,-1247.41,0.00014989,2]
[347166476,1735539046865,-660.40874399,0.00014989,2]
[347166498,1735539363945,172.47,0.00010137,2]
[347166499,1735539440419,459.15,0.0001197,2]
[347166500,1735539702732,450.0,0.00012,2]
[347166501,1735539984145,1094.0,0.00013,6]
[347166502,1735540051130,-150.0,0.00013269,2]
[347166503,1735540051153,-150.0,0.00013351,2]
[347166504,1735540051176,-300.0,0.00013384,2]
[347166505,1735540051201,-150.0,0.00013553,2]
[347166506,1735540051225,-146.88253816,0.00013565,2]
[347166507,1735540078738,8418.59495594,0.00012998,2]
[347166508,1735540104952,66350.38914136,0.000128,2]
[347166525,1735540164108,-3.11746184,0.00013565,2]
[347166526,1735540164128,-177.47858505,0.00013703,2]
[347166527,1735540164150,-150.0,0.00013707,2]
[347166528,1735540164172,-250.0,0.00013707,2]
[347166529,1735540164193,-152.17,0.00013727,2]
[347166530,1735540164216,-150.0,0.00013731,2]
[347166531,1735540164239,-150.0,0.00013745,2]
[347166532,1735540164260,-10972.59,0.00013778,2]
[347166533,1735540164281,-1000.0,0.00013803,2]
[347166534,1735540164304,-150.0,0.00013876,2]
[347166535,1735540164327,-150.0,0.00013889,2]
[347166536,1735540164351,-150.0,0.00013964,2]
[347166537,1735540164371,-2000.0,0.00014,2]
[347166538,1735540164391,-500.0,0.00014,2]
[347166539,1735540164414,-150.0,0.0001413,2]
[347166540,1735540164437,-248.39,0.00014217,2]
[347166541,1735540164459,-459.15,0.00014233,2]
[347166542,1735540164481,-150.0,0.00014237,2]
[347166543,1735540164503,-506.231,0.0001424,2]
[347166544,1735540164525,-500.65,0.00014371,2]
[347166545,1735540164548,-150.0,0.00014387,2]
[347166546,1735540164571,-507.39,0.00014447,2]
[347166547,1735540164593,-150.0,0.00014476,2]
[347166548,1735540164618,-8418.59495594,0.00014498,2]
[347166549,1735540164640,-493.4,0.00014563,2]
[347166550,1735540164661,-254.25997644,0.00014647,2]
[347166551,1735540164685,-150.0,0.00014647,2]
[347166552,1735540164704,-266.7716619,0.00014647,2]
[347166553,1735540164725,-150.0,0.00014647,2]
[347166554,1735540164745,-150.0,0.00014647,2]
[347166555,1735540164765,-150.0,0.00014647,2]
[347166556,1735540164785,-150.0,0.00014647,2]
[347166557,1735540164804,-150.0,0.00014647,2]
[347166558,1735540164824,-150.0,0.00014647,2]
[347166559,1735540164845,-254.25997644,0.00014663,2]
[347166560,1735540164866,-150.0,0.00014665,2]
[347166561,1735540164886,-150.0,0.00014668,2]
[347166562,1735540164905,-1500.0,0.00014678,2]
[347166563,1735540164930,-254.25997644,0.00014679,2]
[347166564,1735540164952,-150.0,0.00014683,2]
[347166565,1735540164972,-150.0,0.00014689,2]
[347166566,1735540164991,-263.9867126,0.00014693,2]
[347166567,1735540170096,-398.9286,0.00013726,2]
[347166568,1735540172097,-164.3754,0.00013726,2]
[347166569,1735540227750,241.36,0.00010137,2]
[347166575,1735540231549,-180.696,0.00013726,2]
[347166576,1735540231558,-90.804,0.00014403,2]
[347166577,1735540231691,-404.086,0.00014403,2]
[347166578,1735540231700,-195.914,0.000146,4]
[347166579,1735540231711,-14.086,0.000146,4]
[347166580,1735540231720,-165.36107224,0.00014693,2]
[347166581,1735540231732,-254.25997644,0.00014696,2]
[347166582,1735540231743,-85.23295132,0.00014701,2]
[347166583,1735540231755,-64.76704868,0.00014701,2]
[347166584,1735540231764,-150.0,0.00014708,2]
[347166585,1735540231774,-150.0,0.0001471,2]
[347166586,1735540231783,-11.07294232,0.00014712,2]
[347166587,1735540231799,-138.92705768,0.00014712,2]
[347166588,1735540231808,-200.42301,0.00014712,2]
[347166589,1735540231831,-53.83696644,0.00014712,2]
[347166590,1735540231841,-150.0,0.00014719,2]
[347166591,1735540231850,-161.11933044,0.00014725,2]
[347166592,1735540231859,-254.25997644,0.00014729,2]
[347166593,1735540231870,-150.0,0.00014731,2]
[347166594,1735540231879,-505.8,0.00014733,2]
[347166595,1735540231888,-150.0,0.00014737,2]
[347166596,1735540231897,-254.25997644,0.00014745,2]
[347166597,1735540231907,-150.0,0.00014752,2]
[347166598,1735540231916,-150.0,0.00014755,2]
[347166599,1735540231925,-207.0,0.0001476,2]
[347166600,1735540231934,-254.25997644,0.00014762,2]
[347166601,1735540231943,-150.0,0.00014773,2]
[347166602,1735540231953,-254.25997644,0.00014778,2]
[347166603,1735540231962,-150.0,0.00014791,2]
[347166604,1735540231971,-254.25997644,0.00014795,2]
[347166605,1735540231980,-150.0,0.00014795,2]
[347166606,1735540231989,-3935.316997,0.000148,2]
[347166607,1735540231998,-254.25997644,0.00014811,2]
[347166608,1735540232008,-150.0,0.00014816,2]
[347166609,1735540232017,-254.25997644,0.00014827,2]
[347166610,1735540232026,-150.0,0.00014827,2]
[347166611,1735540232035,-150.0,0.00014827,2]
[347166612,1735540232044,-150.0,0.00014837,2]
[347166614,1735540232053,-254.25997644,0.00014844,2]
[347166616,1735540232062,-150.0,0.00014858,2]
[347166617,1735540232071,-254.25997644,0.0001486,2]
[347166619,1735540232080,-150.0,0.00014864,2]
[347166621,1735540232089,-500.0,0.00014868,2]
[347166623,1735540232098,-500.0,0.00014868,2]
[347166625,1735540232107,-500.0,0.00014869,2]
[347166626,1735540232116,-500.0,0.00014869,2]
[347166628,1735540232125,-500.0,0.00014869,2]
[347166630,1735540232134,-500.0,0.00014869,2]
[347166632,1735540232143,-500.0,0.00014869,2]
[347166634,1735540232152,-500.0,0.00014869,2]
[347166636,1735540232161,-150.0,0.00014873,2]
[347166637,1735540232170,-254.25997644,0.00014877,2]
[347166639,1735540232179,-150.0,0.00014879,2]
[347166641,1735540232188,-2595.76538404,0.00014888,2]
[347166643,1735540232197,-17749.5949438,0.00014888,2]
[347166645,1735540232206,-162.95507143,0.0001489,2]
[347166646,1735540232215,-254.25997644,0.00014893,2]
[347166648,1735540232224,-150.0,0.000149,2]
[347166650,1735540232233,-150.0,0.000149,2]
[347166652,1735540232242,-1500.0,0.00014909,2]
[347166654,1735540232252,-254.25997644,0.0001491,2]
[347166655,1735540232261,-150.0,0.00014918,2]
[347166657,1735540232270,-150.0,0.00014921,2]
[347166659,1735540232279,-254.25997644,0.00014926,2]
[347166661,1735540232289,-150.0,0.00014936,2]
[347166663,1735540232298,-14898.74147342,0.00014942,2]
[347166664,1735540232307,-254.25997644,0.00014942,2]
[347166666,1735540232316,-150.0,0.00014942,2]
[347166668,1735540232325,-1500.0,0.00014954,2]
[347166670,1735540232334,-254.25997644,0.00014959,2]
[347166672,1735540232343,-1652.0,0.00014959,2]
[347166673,1735540232352,-800.0,0.00014959,2]
[347166675,1735540232361,-1688.0,0.00014959,2]
[347166677,1735540232370,-150.0,0.00014964,2]
[347166679,1735540232379,-150.0,0.00014972,2]
[347166681,1735540232389,-254.25997644,0.00014975,2]
[347166683,1735540232398,-150.0,0.00014985,2]
[347166685,1735540232407,-500.0,0.00014987,2]
[347166686,1735540232417,-508.94304593,0.00014987,2]
[347166688,1735540232427,-500.0,0.00014987,2]
[347166690,1735540232436,-500.0,0.00014987,2]
[347166692,1735540232446,-500.0,0.00014987,2]
[347166694,1735540232455,-500.0,0.00014987,2]
[347166696,1735540232464,-500.0,0.00014987,2]
[347166698,1735540232474,-500.0,0.00014987,2]
[347166700,1735540232482,-500.0,0.00014987,2]
[347166701,1735540232493,-353.14596637,0.00014987,2]
[347166703,1735540232505,-171.7598809,0.00014987,2]
[347166705,1735540232514,-500.0,0.00014987,2]
[347166707,1735540232523,-488.47422037,0.00014987,2]
[347166709,1735540232534,-11.52577963,0.00014987,2]
[347166711,1735540232546,-500.0,0.00014987,2]
[347166712,1735540232555,-500.0,0.00014987,2]
[347166714,1735540232564,-500.0,0.00014987,2]
[347166716,1735540232573,-500.0,0.00014987,2]
[347166718,1735540232582,-500.0,0.00014987,2]
[347166720,1735540232590,-500.0,0.00014987,2]
[347166721,1735540232599,-500.0,0.00014987,2]
[347166723,1735540232608,-500.0,0.00014987,2]
[347166725,1735540232617,-500.0,0.00014987,2]
[347166727,1735540232626,-2644.44494681,0.00014987,2]
[347166730,1735540232641,-613.77,0.00014987,2]
[347166781,1735540237455,-282.55999991,0.000149,2]
[347166782,1735540237466,-6866.45166265,0.000149,2]
[347166783,1735540237475,-516.61770146,0.00014973,2]
[347166784,1735540237486,-5035.87505319,0.00014987,2]
[347166785,1735540237495,-500.0,0.00014987,2]
[347166786,1735540237504,-1115.87,0.00014987,2]
[347166787,1735540237514,-514.59387824,0.00014987,2]
[347166788,1735540237523,-500.0,0.00014987,2]
[347166789,1735540237532,-1631.27,0.00014987,2]
[347166790,1735540237542,-718.01,0.00014987,2]
[347166791,1735540237551,-746.82,0.00014987,2]
[347166792,1735540237561,-1700.04,0.00014987,2]
[347166793,1735540237570,-3316.1,0.00014987,2]
[347166794,1735540237580,-500.0,0.00014987,2]
[347166795,1735540237589,-1324.1347732,0.00014987,2]
[347166796,1735540237599,-28000.47914069,0.00014987,2]
[347166797,1735540237610,-1907.67398131,0.00014987,2]
[347166798,1735540237622,-4459.53243585,0.00014987,2]
[347166799,1735540237633,-2782.89944307,0.00014987,2]
[347166800,1735540237747,-2459180.40339481,0.00014987,2]
[347166801,1735540237756,-500.0,0.00014988,2]
[347166802,1735540237766,-306.38396749,0.00014988,2]
[347166803,1735540237776,-158.751718,0.00014988,2]
[347166804,1735540237785,-153.939526,0.00014988,2]
[347166805,1735540237798,-2309.314928,0.00014988,2]
[347166806,1735540237808,-1892.684954,0.00014988,2]
[347166807,1735540237817,-514.55805642,0.00014988,2]
[347166808,1735540237826,-224.77407679,0.00014988,2]
[347166809,1735540237838,-500.0,0.00014988,2]
[347166810,1735540237848,-500.0,0.00014988,2]
[347166811,1735540237859,-609.1456665,0.00014988,2]
[347166812,1735540237870,-643.90710554,0.00014988,2]
[347166813,1735540237879,-500.0,0.00014988,2]
[347166814,1735540237888,-500.0,0.00014988,2]
[347166815,1735540237897,-500.0,0.00014988,2]
[347166816,1735540237907,-500.0,0.00014988,2]
[347166817,1735540237917,-500.0,0.00014988,2]
[347166818,1735540237926,-520.21606952,0.00014988,2]
[347166819,1735540237936,-500.0,0.00014988,2]
[347166820,1735540237945,-500.0,0.00014988,2]
[347166821,1735540237954,-500.0,0.00014988,2]
[347166822,1735540237963,-500.0,0.00014988,2]
[347166823,1735540237973,-334.34164832,0.00014988,2]
[347166824,1735540237985,-500.0,0.00014988,2]
[347166825,1735540237995,-509.40320813,0.00014988,2]
[347166826,1735540238004,-500.0,0.00014988,2]
[347166827,1735540238014,-1890.23,0.00014988,2]
[347166828,1735540238023,-500.0,0.00014988,2]
[347166829,1735540238032,-500.0,0.00014988,2]
[347166830,1735540238042,-500.0,0.00014988,2]
[347166831,1735540238051,-1329.52,0.00014988,2]
[347166832,1735540238061,-500.0,0.00014988,2]
[347166833,1735540238070,-500.0,0.00014988,2]
[347166834,1735540238079,-401.84408301,0.00014988,2]
[347166835,1735540238089,-500.0,0.00014988,2]
[347166836,1735540238098,-1541.18,0.00014988,2]
[347166837,1735540238107,-500.0,0.00014988,2]
[347166838,1735540238116,-500.0,0.00014988,2]
[347166839,1735540238125,-500.0,0.00014988,2]
[347166840,1735540238135,-1758.7,0.00014988,2]
[347166841,1735540238144,-770.87,0.00014988,2]
[347166842,1735540238153,-500.0,0.00014988,2]
[347166843,1735540238162,-500.0,0.00014988,2]
[347166844,1735540238171,-500.0,0.00014988,2]
[347166845,1735540238180,-500.0,0.00014988,2]
[347166846,1735540238190,-500.0,0.00014988,2]
[347166847,1735540238199,-1237.1,0.00014988,2]
[347166848,1735540238209,-500.0,0.00014988,2]
[347166849,1735540238218,-503.44321535,0.00014988,2]
[347166850,1735540238228,-151.0,0.00014988,2]
[347166851,1735540238242,-500.0,0.00014988,2]
[347166852,1735540238251,-500.0,0.00014988,2]
[347166853,1735540238261,-3260.46,0.00014988,2]
[347166854,1735540238271,-500.0,0.00014988,2]
[347166855,1735540238280,-1898.39,0.00014988,2]
[347166856,1735540238290,-527.89638679,0.00014988,2]
[347166857,1735540238299,-500.0,0.00014988,2]
[347166858,1735540238309,-8076.67,0.00014988,2]
[347166859,1735540238318,-500.0,0.00014988,2]
[347166860,1735540238328,-5355.53,0.00014988,2]
[347166861,1735540238337,-500.0,0.00014988,2]
[347166862,1735540238347,-500.0,0.00014988,2]
[347166863,1735540238357,-772.89,0.00014988,2]
[347166864,1735540238367,-500.0,0.00014988,2]
[347166865,1735540238376,-500.0,0.00014988,2]
[347166866,1735540238386,-1152.785245,0.00014988,2]
[347166867,1735540238395,-151.0,0.00014988,2]
[347166868,1735540238405,-500.0,0.00014988,2]
[347166869,1735540238414,-500.0,0.00014988,2]
[347166870,1735540238424,-1152.785245,0.00014988,2]
[347166871,1735540238433,-500.0,0.00014988,2]
[347166872,1735540238442,-151.0,0.00014988,2]
[347166873,1735540238451,-500.0,0.00014988,2]
[347166874,1735540238460,-500.0,0.00014988,2]
[347166875,1735540238469,-500.0,0.00014988,2]
[347166876,1735540238479,-2333.86,0.00014988,2]
[347166877,1735540238491,-586.44,0.00014988,2]
[347166878,1735540238501,-500.0,0.00014988,2]
[347166879,1735540238510,-500.0,0.00014988,2]
[347166880,1735540238520,-500.0,0.00014988,2]
[347166881,1735540238529,-12730.05,0.00014988,2]
[347166882,1735540238538,-176.14,0.00014988,2]
[347166883,1735540238548,-500.0,0.00014988,2]
[347166884,1735540238557,-500.0,0.00014988,2]
[347166885,1735540238567,-372.984658,0.00014988,2]
[347166886,1735540238576,-500.0,0.00014988,2]
[347166887,1735540238585,-500.0,0.00014988,2]
[347166888,1735540238594,-372.984658,0.00014988,2]
[347166889,1735540238604,-500.0,0.00014988,2]
[347166890,1735540238613,-500.0,0.00014988,2]
[347166891,1735540238622,-500.0,0.00014988,2]
[347166892,1735540238631,-500.0,0.00014988,2]
[347166893,1735540238641,-538.46,0.00014988,2]
[347166894,1735540238826,-500.0,0.00014988,2]
[347166895,1735540238836,-907.32,0.00014988,2]
[347166896,1735540238845,-151.0,0.00014988,2]
[347166897,1735540238854,-500.0,0.00014988,2]
[347166898,1735540238864,-500.0,0.00014988,2]
[347166899,1735540238873,-1407.57,0.00014988,2]
[347166900,1735540238883,-500.0,0.00014988,2]
[347166901,1735540238892,-151.0,0.00014988,2]
[347166902,1735540238902,-500.0,0.00014988,2]
[347166903,1735540238911,-500.0,0.00014988,2]
[347166904,1735540238921,-605.45,0.00014988,2]
[347166905,1735540238930,-500.0,0.00014988,2]
[347166906,1735540238939,-500.0,0.00014988,2]
[347166907,1735540238949,-2114.27,0.00014988,2]
[347166908,1735540238958,-500.0,0.00014988,2]
[347166909,1735540238967,-500.0,0.00014988,2]
[347166910,1735540238976,-558.29,0.00014988,2]
[347166911,1735540238987,-152.659051,0.00014988,2]
[347166912,1735540238996,-500.0,0.00014988,2]
[347166913,1735540239005,-500.0,0.00014988,2]
[347166914,1735540239014,-500.0,0.00014988,2]
[347166915,1735540239024,-500.0,0.00014988,2]
[347166916,1735540239033,-623.84571113,0.00014988,2]
[347166917,1735540239043,-151.0,0.00014988,2]
[347166918,1735540239053,-1732.3,0.00014988,2]
[347166919,1735540239062,-500.0,0.00014988,2]
[347166920,1735540239071,-151.0,0.00014988,2]
[347166921,1735540239081,-151.0,0.00014988,2]
[347166922,1735540239091,-500.0,0.00014988,2]
[347166923,1735540239100,-3453.94,0.00014988,2]
[347166924,1735540239110,-1678.838186,0.00014988,2]
[347166925,1735540239119,-1678.838186,0.00014988,2]
[347166926,1735540239128,-500.0,0.00014988,2]
[347166927,1735540239138,-500.0,0.00014988,2]
[347166928,1735540239148,-1725.44658604,0.00014989,2]
[347166929,1735540239157,-200.0,0.00014989,2]
[347166930,1735540239166,-500.0,0.00014989,2]
[347166931,1735540239176,-505.72749038,0.00014989,2]
[347166932,1735540239185,-500.0,0.00014989,2]
[347166933,1735540239194,-504.3078164,0.00014989,2]
[347166934,1735540239203,-506.80105372,0.00014989,2]
[347166935,1735540239212,-500.0,0.00014989,2]
[347166936,1735540239221,-500.0,0.00014989,2]
[347166937,1735540239230,-402.50886335,0.00014989,2]
[347166938,1735540239241,-500.0,0.00014989,2]
[347166939,1735540239250,-375.51026182,0.00014989,2]
[347166940,1735540239259,-500.0,0.00014989,2]
[347166941,1735540239268,-200.0,0.00014989,2]
[347166942,1735540239278,-526.90702846,0.00014989,2]
[347166943,1735540239287,-538.65,0.00014989,2]
[347166944,1735540239296,-500.0,0.00014989,2]
[347166945,1735540239305,-1156.228647,0.00014989,2]
[347166946,1735540239315,-508.5561496,0.00014989,2]
[347166947,1735540239324,-500.0,0.00014989,2]
[347166948,1735540239334,-516.7568654,0.00014989,2]
[347166949,1735540239344,-1156.228647,0.00014989,2]
[347166950,1735540239353,-508.64275859,0.00014989,2]
[347166951,1735540239363,-208.05965692,0.00014989,2]
[347166952,1735540239372,-509.46391453,0.00014989,2]
[347166953,1735540239381,-500.0,0.00014989,2]
[347166954,1735540239391,-500.0,0.00014989,2]
[347166955,1735540239400,-514.00953756,0.00014989,2]
[347166956,1735540239409,-500.0,0.00014989,2]
[347166957,1735540239419,-500.0,0.00014989,2]
[347166958,1735540239428,-330.978112,0.00014989,2]
[347166959,1735540239437,-330.978112,0.00014989,2]
[347166960,1735540239447,-151.0,0.00014989,2]
[347166961,1735540239457,-151.0,0.00014989,2]
[347166962,1735540239466,-502.93513282,0.00014989,2]
[347166963,1735540239476,-500.0,0.00014989,2]
[347166964,1735540239486,-151.0,0.00014989,2]
[347166965,1735540239495,-151.0,0.00014989,2]
[347166966,1735540239505,-388.69956266,0.00014989,2]
[347166967,1735540239514,-513.33379803,0.00014989,2]
[347166968,1735540239523,-210.019691,0.00014989,2]
[347166969,1735540239532,-210.019691,0.00014989,2]
[347166970,1735540239541,-548.54803067,0.00014989,2]
[347166971,1735540239550,-500.0,0.00014989,2]
[347166972,1735540239559,-210.019691,0.00014989,2]
[347166973,1735540239568,-210.019691,0.00014989,2]
[347166974,1735540239578,-513.44557731,0.00014989,2]
[347166975,1735540239587,-170.17978811,0.00014989,2]
[347166976,1735540239596,-151.0,0.00014989,2]
[347166977,1735540239605,-151.0,0.00014989,2]
[347166978,1735540239615,-160.023221,0.00014989,2]
[347166979,1735540239624,-160.023221,0.00014989,2]
[347166980,1735540239634,-160.023221,0.00014989,2]